[Event "44th Chess Olympiad Open 2022"]
[Site "Chennai"]
[Date "2022.08.07"]
[Round "9.20"]
[White "Sethuraman, S.P..."]
[Black "Delgado Ramirez, Neuris"]
[Result "1-0"]
[WhiteElo "2623"]
[BlackElo "2614"]
[Annotator "TA"]
[PlyCount "133"]
[EventDate "2022.??.??"]
[TimeControl "60"]

{[%evp 10,133,28,28,28,21,29,25,29,31,31,35,33,21,33,32,31,29,35,29,33,33,63,
58,61,31,35,0,0,27,0,0,154,102,115,125,122,106,157,118,121,124,122,125,118,120,
121,103,108,107,110,72,105,104,102,98,92,72,77,71,71,87,208,196,264,263,264,
252,276,280,287,287,266,0,261,261,268,286,297,275,260,254,299,311,297,173,175,
112,115,113,105,105,97,109,250,209,227,220,229,234,227,211,225,196,191,172,135,
114,314,295,331,162,202,126,179,63,441,307,265,173,293,239,5497,1802,12850,
12850]} 1. e4 {[%emt 0:00:12]} c5 {[%emt 0:00:07]} 2. Nf3 {[%emt 0:00:05][%cal
Yg1f3,Yf3d4,Yd4b5,Yb5a3,Ya3c2]} Nc6 {[%emt 0:00:08]} 3. d4 {[%emt 0:00:00]}
cxd4 {[%emt 0:00:08]} 4. Nxd4 {[%emt 0:00:04]} e5 {[%emt 0:00:29]} 5. Nb5 {
[%emt 0:00:24]} d6 {[%emt 0:00:08]} 6. c4 {[%emt 0:00:16]} Nf6 {[%emt 0:00:00]
6...Be6 is a critical line. B32: Sicilian: Löwenthal and Kalashnikov
Variations.} 7. N1c3 {[%emt 0:00:11]} a6 {[%emt 0:00:15]} 8. Na3 {[%emt 0:00:
00]} g6 {[%emt 0:00:14] White has an edge.} 9. Nc2 {[%emt 0:00:51]} Bg7 {
[%emt 0:00:39]} 10. Bd3 {[%emt 0:00:53]} Be6 {[%emt 0:01:14]} 11. O-O {[%emt 0:
00:00]} Rc8 {[%emt 0:04:54] [#]} 12. b3 $146 {[%emt 0:05:25]} ({Predecessor:} 
12. Bg5 O-O 13. Qd2 Qb6 14. b3 Nd7 15. Ne3 Qa5 16. Ned5 Bxd5 17. Nxd5 Qxd2 18.
Bxd2 {0-1 (72) Godzwon,I (2321)-Swiercz,D (2664) Chess.com INT 2022}) 12... Nd7
{[%emt 0:02:52]} 13. Be3 {[%emt 0:03:53]} Nd4 {[%emt 0:03:52]} 14. Ne2 {
[%emt 0:05:22]} Nc6 {[%emt 0:00:50]} 15. Qd2 {[%emt 0:06:00]} Nc5 {[%emt 0:00:
00]} 16. Nc3 {[%emt 0:00:23]} f5 {[%emt 0:14:31]} 17. exf5 {[%emt 0:09:54]}
gxf5 {[%emt 0:00:12]} 18. Bh6 {[%emt 0:01:16]} Rg8 {[%emt 0:21:54]} 19. Bxg7 {
[%emt 0:03:05]} Rxg7 {[%emt 0:01:51]} 20. f4 {[%emt 0:00:06]} exf4 $2 {[%emt 0:
00:00]} ({Much less strong is} 20... Nxd3 21. Qxd3 e4 22. Qh3 $14) (20... d5 $1
$11 21. Rad1 d4) 21. Be2 {[%emt 0:04:32]} (21. Rxf4 $142 Qg5 22. Bf1 (22. Bxf5
Bxf5 23. h4 Qxg2+ 24. Qxg2 Rxg2+ 25. Kxg2 Bxc2 $17)) 21... Ne5 {[%emt 0:06:24]}
22. Nd4 {[%emt 0:03:44] Black must now prevent b4.} Qg5 {[%emt 0:00:34][%csl
Gg7][%cal Rg5g2]} 23. Bf3 {[%emt 0:01:14][%cal Yf3b7]} Bd7 {[%emt 0:02:31]} (
23... Kf7 $142) 24. Bd5 {[%emt 0:15:43]} f3 {[%emt 0:07:24]} 25. Qxg5 {[%emt 0:
00:00] The board is on fire.} Rxg5 {[%emt 0:00:07]} 26. Nxf3 {[%emt 0:00:03]}
Nxf3+ {[%emt 0:00:21]} 27. Rxf3 {[%emt 0:00:05]} b5 {[%emt 0:00:21]} 28. Re1+ {
[%emt 0:09:48]} Kd8 {[%emt 0:00:43]} 29. Rd1 {[%emt 0:06:32] White is more
active.} Kc7 {[%emt 0:01:40]} 30. Re3 {[%emt 0:03:23] Strongly threatening Re7.
} Re8 {[%emt 0:01:27] Prevents Re7.} 31. Rxe8 {[%emt 0:03:56]} Bxe8 {[%emt 0:
00:00]} 32. cxb5 {[%emt 0:00:08]} axb5 {[%emt 0:00:21]} 33. Bf3 {[%emt 0:00:04]
} Bc6 {[%emt 0:00:56]} 34. Nd5+ $1 {[%emt 0:06:52]} Kb7 {[%emt 0:02:47]} 35.
Kf2 {[%emt 0:00:55]} Nd7 {[%emt 0:00:38]} (35... Rg8 $16) 36. h4 $1 $18 {
[%emt 0:03:02]} Rg7 {[%emt 0:00:58]} (36... Rg6 {was worth a try.} 37. Ne7 Bxf3
38. gxf3 Rf6) 37. Ne3 $1 {[%emt 0:00:48][%csl Yd6,Yf5]} Bxf3 {[%emt 0:01:27]}
38. gxf3 {[%emt 0:02:57] Endgame KRN-KRN} Kc7 {[%emt 0:05:45]} 39. Nxf5 {
[%emt 0:00:27]} Rg6 {[%emt 0:00:07]} 40. Rc1+ {[%emt 0:00:58]} Kb7 {[%emt 0:00:
24]} 41. Rd1 {[%emt 0:32:49]} Kc7 {[%emt 0:30:37]} 42. Rd5 {[%emt 0:00:00]} b4
{[%emt 0:00:00]} 43. Rd4 {[%emt 0:06:31]} Ne5 {[%emt 0:00:00]} 44. Ne7 {
[%emt 0:00:00]} Rg7 {[%emt 0:00:00]} 45. Nd5+ {[%emt 0:00:00]} Kc6 {[%emt 0:00:
00]} 46. Nxb4+ {[%emt 0:00:00]} Kc5 {[%emt 0:00:00]} 47. Re4 {[%emt 0:00:00]} (
47. Nc2 $142) 47... Rf7 {[%emt 0:00:00] [#]} 48. f4 {[%emt 0:00:00]} (48. Ke2
$1 $18) 48... d5 $16 {[%emt 0:00:00]} 49. Na6+ {[%emt 0:00:00]} Kd6 {[%emt 0:
00:00]} 50. Ra4 {[%emt 0:00:00]} Ng6 {[%emt 0:00:00]} 51. Kg3 {[%emt 0:00:00]}
Ne7 {[%emt 0:00:00]} (51... h5 $16 52. Rb4 Kc6 53. Nb8+ Kc5 54. Na6+ Kc6) 52.
Nb4 {[%emt 0:00:00]} Rg7+ {[%emt 0:00:00]} 53. Kf2 {[%emt 0:00:00]} Rg4 {
[%emt 0:00:00]} 54. Nd3 {[%emt 0:00:00] aiming for Ra6+.} Rxh4 {[%emt 0:00:00]}
55. Ra6+ {[%emt 0:00:00]} Kc7 {[%emt 0:00:00]} 56. b4 {[%emt 0:00:00]} Nf5 {
[%emt 0:00:00]} 57. b5 {[%emt 0:00:00] And now Rf6 would win.} Rh2+ {[%emt 0:
00:00]} 58. Kf1 {[%emt 0:02:49]} Nd4 $2 {[%emt 0:00:00]} (58... Ne3+ $16 59.
Ke1 d4) 59. a4 $18 {[%emt 0:00:31]} Rd2 {[%emt 0:00:00]} 60. Ne5 {[%emt 0:00:
48]} (60. Nc5 $142) 60... Ra2 {[%emt 0:00:00]} 61. Nc6 {[%emt 0:00:00]} Nf3 {
[%emt 0:00:00] [#]} (61... Nxc6 $16 62. Rxc6+ Kb7) 62. Nb4 {[%emt 0:00:00]} ({
Better is} 62. a5 $1 $18) 62... Rd2 $2 {[%emt 0:00:00]} ({Black should play} 
62... Nh2+ $14 63. Ke1 Nf3+ 64. Kf1 Nh2+ 65. Ke1 Nf3+ 66. Kd1 Rd2+ 67. Kc1 Rd4)
63. Rc6+ {[%emt 0:00:04]} Kb7 {[%emt 0:00:00]} 64. Rc3 {[%emt 0:00:02]} Nd4 {
[%emt 0:00:00]} (64... Rd4 {might work better.}) 65. Nxd5 {[%emt 0:00:30]} Nxb5
$2 {[%emt 0:00:00]} (65... h5 66. Rc7+ Kb8) 66. Rb3 {[%emt 0:00:09]} ({Less
strong is} 66. axb5 Rxd5 67. Kg2 Rxb5 $16) 66... Rxd5 {[%emt 0:00:00]} 67.
Rxb5+ {[%emt 0:00:10] Weighted Error Value: White=0.17 (very precise) /Black=0.
23 (precise)} 1-0

[Event "44th Chess Olympiad Open 2022"]
[Site "Chennai"]
[Date "2022.08.07"]
[Round "9.20"]
[White "Puranik, Abhimanyu"]
[Black "Zacarias, M Ruben D"]
[Result "1-0"]
[WhiteElo "2612"]
[BlackElo "2175"]
[Annotator "TA"]
[PlyCount "73"]
[EventDate "2022.??.??"]
[TimeControl "60"]

{[%evp 9,73,62,78,58,63,52,91,77,71,85,96,87,93,86,85,85,104,101,100,47,43,6,
14,0,35,43,37,42,42,41,42,21,75,72,109,101,99,109,96,99,125,122,127,130,123,
118,137,133,133,144,199,168,255,235,258,263,393,377,421,402,29983,29984,29993,
29994,29994,29995]} 1. d4 {[%emt 0:00:04]} Nf6 {[%emt 0:00:07]} 2. Nf3 {
[%emt 0:00:03]} g6 {[%emt 0:02:39]} 3. Nbd2 {[%emt 0:00:06]} c5 {[%emt 0:04:25]
} 4. dxc5 {[%emt 0:00:05]} Na6 {[%emt 0:00:13]} 5. e4 {[%emt 0:04:36][%cal
Ye2e4,Ye4e5]} Nxc5 {[%emt 0:00:10]} 6. e5 {[%emt 0:00:05] A48:1 d4 Nf6 2 Nf3
g6: Torre, London and Colle Systems.} Nd5 {[%emt 0:03:17]} 7. Nc4 {[%emt 0:10:
20]} Nb6 {[%emt 0:04:57]} 8. Be3 {[%emt 0:01:41] White is better.} Nxc4 {
[%emt 0:23:26]} 9. Bxc4 {[%emt 0:01:00] [#]} Ne6 $146 {[%emt 0:01:52]} ({
Predecessor:} 9... Qc7 10. Ng5 Ne6 11. Bxe6 dxe6 12. Qf3 f6 13. exf6 exf6 14.
Qxf6 Bg7 15. Qf3 Bxb2 {1-0 (41) Chatalbashev,B (2552)-Weber,T (2380)
Baden-Baden 2013}) 10. Qd3 {[%emt 0:13:25] White is much more active. The
black rooks are badly placed.} Qa5+ {[%emt 0:02:49]} 11. Bd2 {[%emt 0:01:25]}
Qc7 {[%emt 0:00:27]} 12. O-O-O {[%emt 0:01:26]} Bg7 {[%emt 0:00:59]} 13. h4 {
[%emt 0:02:37]} h5 {[%emt 0:00:33]} 14. Qe4 {[%emt 0:03:06]} (14. Rhe1 $16)
14... Rb8 $14 {[%emt 0:03:02]} 15. Kb1 {[%emt 0:09:12]} b5 {[%emt 0:02:14]} 16.
Bd5 {[%emt 0:00:46]} Bb7 {[%emt 0:00:49]} 17. Be3 {[%emt 0:00:30]} a5 {[%emt 0:
00:00]} 18. Rd2 {[%emt 0:00:33]} Bxd5 {[%emt 0:10:11]} 19. Rxd5 {[%emt 0:02:02]
} Qc6 {[%emt 0:00:53]} 20. Qd3 {[%emt 0:00:59]} (20. Rhd1 $5 {[%cal Rf3g5]})
20... O-O {[%emt 0:04:14]} (20... a4 $11) 21. Rxd7 {[%emt 0:04:58] White
leaves nothing to chance now.} Rfd8 {[%emt 0:02:15]} 22. Rd1 {[%emt 0:00:38]
[%cal Rd7d8]} Rxd7 {[%emt 0:00:34]} 23. Qxd7 {[%emt 0:00:02]} Qe4 {[%emt 0:00:
00]} 24. Qxe7 {[%emt 0:05:59]} Rc8 {[%emt 0:01:26]} 25. Rc1 {[%emt 0:07:42]}
Bxe5 {[%emt 0:02:02]} 26. Nxe5 {[%emt 0:02:35]} Qxe5 {[%emt 0:00:04] [#]} 27.
Qb7 $1 {[%emt 0:00:11] Prevents Qd5.} Rb8 {[%emt 0:01:41]} 28. Qc6 {[%emt 0:00:
00]} b4 {[%emt 0:00:28]} 29. Rd1 {[%emt 0:00:40] Prevents Nd4.} Qf5 {[%emt 0:
00:00]} (29... Ng7 $16 {might work better.}) 30. b3 {[%emt 0:04:53]} Qg4 {
[%emt 0:01:15]} (30... Kg7 $142 31. Rd7 Qe5) 31. Rd7 $18 {[%emt 0:00:13]} Qxh4
{[%emt 0:00:40]} 32. Qf3 {[%emt 0:00:10]} Rf8 {[%emt 0:01:20]} (32... f5 $142
33. Rd6 Qh1+ 34. Kb2 Qe1) 33. Bh6 {[%emt 0:01:52]} Nd4 {[%emt 0:00:32] [#]} 34.
Qd5 $1 {[%emt 0:01:22]} Ne2 {[%emt 0:00:35]} (34... Qh1+ $2 35. Kb2 Qe1 36.
Qxd4 $18) (34... Qxf2 $18 35. Qxd4 Qxd4 36. Rxd4 Re8) 35. Qe5 {[%emt 0:00:34]
[%csl Gh6][%cal Re5g7] White mates.} Nc3+ {[%emt 0:01:02]} 36. Kb2 {[%emt 0:00:
00][%csl Gh6][%cal Re5g7]} f6 {[%emt 0:00:31]} 37. Qe6+ {[%emt 0:00:04]
Weighted Error Value: White=0.06 (flawless) /Black=0.40} 1-0

[Event "44th Chess Olympiad Open 2022"]
[Site "Chennai"]
[Date "2022.08.07"]
[Round "9.20"]
[White "Bachmann, Axel"]
[Black "Ganguly, Surya Shekhar"]
[Result "1-0"]
[WhiteElo "2588"]
[BlackElo "2608"]
[Annotator "TA"]
[PlyCount "73"]
[EventDate "2022.??.??"]
[TimeControl "60"]

{[%evp 9,73,10,10,0,-1,0,0,0,0,0,0,-15,13,5,22,9,14,16,77,54,158,133,336,333,
276,28,48,17,52,-17,16,25,406,72,396,387,366,262,279,244,266,252,262,262,259,
157,283,355,697,679,1501,1486,1479,1479,1329,1301,1256,0,356,0,985,985,29990,
29991,29996,7]} 1. Nf3 {[%emt 0:00:04]} d5 {[%emt 0:00:14]} 2. e3 {[%emt 0:00:
00]} Nf6 {[%emt 0:00:37]} 3. c4 {[%emt 0:00:05]} e6 {[%emt 0:00:06]} 4. b3 {
[%emt 0:00:04]} b6 {[%emt 0:00:33]} 5. Bb2 {[%emt 0:00:22]} Bb7 {[%emt 0:00:12]
} 6. cxd5 {[%emt 0:00:45] A13: English Opening: 1...e6.} exd5 {[%emt 0:00:07]}
7. Nc3 {[%emt 0:00:06] 7.d4 is a critical line.} Nbd7 {[%emt 0:00:23]} 8. Rc1 {
[%emt 0:00:17] The position is equal.} a6 {[%emt 0:00:14]} 9. Ne2 {[%emt 0:00:
00]} c5 {[%emt 0:00:22]} 10. Ng3 {[%emt 0:00:22]} h5 {[%emt 0:00:08]} 11. h4 {
[%emt 0:01:04]} g6 {[%emt 0:03:31] [#]} 12. Be2 $146 {[%emt 0:03:31]} ({
Predecessor:} 12. Ng5 Bg7 13. d4 O-O 14. Be2 Qe7 15. Bf3 Ne4 16. N3xe4 dxe4 17.
Be2 Rac8 18. O-O {½-½ (61) Mendonca,L (2536)-Daggupati,B (2442) chess24.com
INT 2021}) 12... Bd6 {[%emt 0:01:27]} 13. O-O {[%emt 0:04:15]} O-O {[%emt 0:00:
00]} (13... Rc8 $11 {remains equal.}) 14. Ng5 $1 $16 {[%emt 0:01:58]} Ne5 {
[%emt 0:03:14]} (14... Qe7 $14) 15. Qc2 $1 {[%emt 0:04:47] aiming for f4.} Bc8
$2 {[%emt 0:29:11]} (15... d4 $16) 16. f4 $18 {[%emt 0:08:42]} Neg4 {[%emt 0:
00:00] [#]} 17. Bd3 $2 {[%emt 0:04:15]} (17. f5 $1 $18 {[%cal Rf5g6]} Bxg3 18.
fxg6) 17... Ra7 $1 $11 {[%emt 0:03:33]} 18. Rf3 {[%emt 0:11:02]} (18. Bxg6 fxg6
19. Qxg6+ Rg7 $17) 18... b5 {[%emt 0:11:10]} 19. Qb1 {[%emt 0:12:48]} (19. Bxg6
fxg6 20. Qxg6+ Rg7 $17) (19. Rcf1 $14) 19... Re8 {[%emt 0:03:46]} 20. b4 {
[%emt 0:18:27]} (20. Bxg6 fxg6 21. Qxg6+ Rg7 $17) 20... cxb4 {[%emt 0:09:37] 
[#]} (20... c4 $1 $11 21. Bc2 (21. Bxg6 $2 fxg6 22. Qxg6+ Rg7 $19) 21... Rd7)
21. Bd4 $2 {[%emt 0:09:28]} ({Weaker is} 21. Bxg6 fxg6 22. Rxc8 (22. Qxg6+ Rg7
$11) 22... Qxc8 $18) (21. Rxc8 $1 $18 {and White stays clearly on top.} Qxc8
22. Bxg6 $1 fxg6 23. Bxf6 Nxf6 24. Qxg6+ Rg7 25. Qxf6) 21... Rae7 $2 {[%emt 0:
02:42]} (21... Rc7 $16) 22. Bxf6 {[%emt 0:00:00]} Nxf6 {[%emt 0:00:07]} 23. f5
{[%emt 0:00:59]} Bxg3 {[%emt 0:05:28]} 24. fxg6 {[%emt 0:00:04] Discovered
Attack} Be5 {[%emt 0:05:26] Strongly threatening ...fxg6.} 25. gxf7+ {[%emt 0:
00:05]} Rxf7 {[%emt 0:00:05]} 26. Nxf7 {[%emt 0:00:55]} Kxf7 {[%emt 0:00:02]}
27. Bh7 {[%emt 0:01:11] The board is on fire.} Bg4 {[%emt 0:02:27]} (27... Kg7
$16 {was called for.} 28. Qg6+ Kh8) 28. Qg6+ {[%emt 0:01:07]} Ke7 $2 {[%emt 0:
00:06] [#]} (28... Ke6) 29. d4 $1 $18 {[%emt 0:00:44]} Bxd4 {[%emt 0:08:23]}
30. exd4 {[%emt 0:00:08]} Bxf3 {[%emt 0:00:00]} 31. Qg7+ {[%emt 0:00:12]} Kd6 {
[%emt 0:00:04]} 32. Qg3+ {[%emt 0:00:17]} Ke7 {[%emt 0:00:15]} 33. Qg7+ $2 $40
{[%emt 0:00:50] White mounts an attack.} (33. Rc7+ Qxc7 34. Qxc7+ Kf8 35. Bg6)
33... Kd6 {[%emt 0:00:04] Hoping for ...Bg4.} 34. Qg3+ {[%emt 0:00:06]} (34.
gxf3 Rg8 35. Bxg8 Qxg8 36. Qg5) 34... Ke7 {[%emt 0:00:02][%cal Yd8b6]} 35. Rc7+
{[%emt 0:01:25]} Nd7 {[%emt 0:00:02]} 36. Rc6 {[%emt 0:00:58][%cal Rg3g7]} Bg4
{[%emt 0:03:05]} 37. Qd6+ {[%emt 0:00:10] Weighted Error Value: White=0.56/
Black=0.88. Loss on time!?} 1-0

[Event "44th Chess Olympiad Open 2022"]
[Site "Chennai"]
[Date "2022.08.07"]
[Round "9.20"]
[White "Cubas, Jose Fernando"]
[Black "Karthikeyan, Murali"]
[Result "0-1"]
[WhiteElo "2451"]
[BlackElo "2613"]
[Annotator "TA"]
[PlyCount "88"]
[EventDate "2022.??.??"]
[TimeControl "60"]

{[%evp 18,88,50,50,52,47,43,40,54,49,51,41,60,24,34,28,56,51,50,50,76,51,47,47,
63,64,74,78,74,67,60,82,115,102,116,25,59,12,33,0,0,0,0,0,0,-4,-11,-11,-10,
-751,-664,-917,-890,-903,-895,-876,-883,-848,-846,-847,-842,-820,-812,-812,
-791,-12835,-12835,-12845,-12845,-12845,-12846,-12847,-12847]} 1. e4 {[%emt 0:
00:00]} c5 {[%emt 0:00:12]} 2. Nf3 {[%emt 0:00:13]} Nc6 {[%emt 0:00:16]} 3. d4
{[%emt 0:00:49]} cxd4 {[%emt 0:00:07]} 4. Nxd4 {[%emt 0:00:03]} e6 {[%emt 0:00:
00]} 5. Nc3 {[%emt 0:00:26]} Qc7 {[%emt 0:00:11]} 6. Be3 {[%emt 0:01:01]} a6 {
[%emt 0:00:11]} 7. Bd3 {[%emt 0:04:02]} Nf6 {[%emt 0:00:28]} 8. O-O {[%emt 0:
00:00]} h5 {[%emt 0:02:07]} 9. h3 {[%emt 0:02:05]} Nxd4 {[%emt 0:05:05]} 10.
Bxd4 {[%emt 0:00:08]} Bc5 {[%emt 0:00:13] B48: Sicilian: Taimanov: 5 Nc3 Qc7 6
Be3 a6 without Be2.} 11. Bxc5 {[%emt 0:12:08]} Qxc5 {[%emt 0:00:20]} 12. Na4 {
[%emt 0:00:03]} Qa5 {[%emt 0:14:22] White is slightly better.} 13. c4 {[%emt 0:
00:00] aiming for c5.} d6 {[%emt 0:00:21] Inhibits c5.} 14. Bc2 {[%emt 0:08:44]
} Qc7 {[%emt 0:07:44] [#]} 15. Rc1 $146 {[%emt 0:07:58]} ({Predecessor:} 15.
Qd3 Bd7 16. Rfd1 Rc8 17. Nc3 e5 18. Qxd6 Qxd6 19. Rxd6 Rxc4 20. Rad1 Rc5 21.
Ba4 Bxa4 22. Nxa4 {½-½ (30) Roganovic,M (2474)-Miladinovic,I (2547)
Kragujevac 2009}) 15... Bd7 {[%emt 0:03:25]} 16. Qd4 {[%emt 0:01:31]} e5 {
[%emt 0:15:41]} 17. Qe3 {[%emt 0:01:29]} Rd8 {[%emt 0:03:44]} 18. Rfd1 {
[%emt 0:09:18]} O-O {[%emt 0:03:20]} 19. Nb6 {[%emt 0:05:05]} Be6 {[%emt 0:00:
00]} 20. b4 {[%emt 0:04:59]} h4 {[%emt 0:06:09]} 21. Bb3 {[%emt 0:10:42]} Nh5 {
[%emt 0:04:23]} (21... Nxe4 $2 22. Nd5 Bxd5 23. cxd5 $18) 22. c5 {[%emt 0:00:
00] [#] Threatens to win with cxd6.} Qe7 {[%emt 0:06:39]} 23. Nd5 {[%emt 0:00:
00] Inhibits Nf4.} Bxd5 {[%emt 0:05:41]} 24. exd5 {[%emt 0:00:02]} ({Don't play
} 24. Bxd5 dxc5 25. bxc5 (25. Qxc5 Qg5 $11) (25. Rxc5 Nf4 $11) 25... Rc8 $11) (
24. Rxd5 Nf4 25. Rdd1 dxc5 $11) 24... e4 {[%emt 0:02:21]} 25. Re1 {[%emt 0:00:
00]} f5 {[%emt 0:00:20]} 26. f3 {[%emt 0:00:29]} (26. Bd1 $16 Nf6 27. c6) 26...
Ng3 {[%emt 0:01:27]} 27. fxe4 {[%emt 0:00:24]} (27. c6 $14 {should be
considered.}) 27... fxe4 $11 {[%emt 0:00:28]} 28. Bd1 {[%emt 0:00:11]} Kh8 {
[%emt 0:05:37]} 29. c6 {[%emt 0:00:55]} bxc6 {[%emt 0:00:18]} 30. dxc6 {
[%emt 0:00:01]} d5 $1 {[%emt 0:00:02]} 31. c7 {[%emt 0:02:26]} Rc8 {[%emt 0:00:
00]} 32. Qb6 {[%emt 0:00:48] Black must now prevent Bg4.} Rf7 {[%emt 0:01:28]
[%cal Rc8c7] The board is on fire.} 33. Qb8 {[%emt 0:00:41] White does not
recover from this.} (33. Bb3 $11 Qe5 34. Qb7 Rcxc7 35. Rxc7 (35. Qxd5 Ne2+ 36.
Kh1 Qxd5 $17) 35... Rxc7 36. Qxd5 Qxd5 37. Bxd5) 33... Qf8 $19 {[%emt 0:00:21]
Black is clearly winning.} 34. Bg4 {[%emt 0:01:26]} Rxb8 {[%emt 0:00:08]} 35.
cxb8=Q {[%emt 0:00:10]} Qxb8 {[%emt 0:00:06]} (35... Ne2+ $2 36. Rxe2 Qxb8 37.
Rc8+ Rf8 38. Rxb8 $18) 36. Rc8+ {[%emt 0:00:01] [#]} Qxc8 $3 {[%emt 0:00:55]}
37. Bxc8 {[%emt 0:00:01] Endgame KRB-KRN} d4 {[%emt 0:01:04] ...d3 is the
strong threat.} 38. Bxa6 {[%emt 0:00:10]} d3 {[%emt 0:01:44] ( -> ...d2)} 39.
Rd1 {[%emt 0:01:09]} Ne2+ {[%emt 0:02:38]} 40. Kh2 {[%emt 0:00:03]} Rf2 {
[%emt 0:01:03] And now ...Nf4 would win.} 41. Bxd3 {[%emt 0:07:42]} exd3 {
[%emt 0:01:17]} 42. Rxd3 {[%emt 0:00:01]} Rf1 {[%emt 0:00:00]} 43. Rf3 {
[%emt 0:00:15]} Ra1 {[%emt 0:00:26]} 44. g4 {[%emt 0:00:08]} hxg3+ {[%emt 0:00:
21] Weighted Error Value: White=0.51/Black=0.05 (flawless)} 0-1

[Event "44th Chess Olympiad Open 2022"]
[Site "Chennai"]
[Date "2022.08.07"]
[Round "9.21"]
[White "Saric, Ivan"]
[Black "Meier, Georg"]
[Result "0-1"]
[WhiteElo "2680"]
[BlackElo "2613"]
[Annotator "TA"]
[PlyCount "102"]
[EventDate "2022.??.??"]
[TimeControl "60"]

{[%evp 13,102,28,30,9,36,26,27,27,32,27,27,28,31,27,29,26,27,21,28,0,0,7,13,16,
23,0,76,48,139,139,93,74,65,69,71,16,18,0,27,0,0,0,25,23,37,0,23,17,46,49,41,0,
0,0,0,-29,-24,-66,-65,-376,-395,-343,-422,-422,-416,-409,-402,-394,-385,-1618,
-1270,-1849,-1844,-1844,-1781,-1656,-1601,-1581,-1538,-1444,-1350,-29977,
-29978,-29978,-29979,-29979,-29980,-29980,-29981,-29981,-29978]} 1. e4 {
[%emt 0:00:02]} e6 {[%emt 0:00:06]} 2. d4 {[%emt 0:00:04]} d5 {[%emt 0:00:11]}
3. Nc3 {[%emt 0:00:04]} dxe4 {[%emt 0:00:05]} 4. Nxe4 {[%emt 0:00:06]} Nd7 {
[%emt 0:00:04]} 5. Nf3 {[%emt 0:00:17]} Ngf6 {[%emt 0:00:05]} 6. Nxf6+ {
[%emt 0:00:08]} Nxf6 {[%emt 0:00:07]} 7. c3 {[%emt 0:00:09]} c5 {[%emt 0:00:05]
} 8. Be3 {[%emt 0:00:27] is currently scoring better than 8.Ne5. C10: French
with 3 Nc3: Unusual Black 3rd moves and 3...dxe4.} Qc7 {[%emt 0:00:06]} 9. Ne5
{[%emt 0:01:21]} a6 {[%emt 0:00:18] Prevents Bb5+.} 10. Qa4+ {[%emt 0:00:06]
White has an edge.} Nd7 {[%emt 0:01:18]} 11. Bb5 {[%emt 0:00:32]} cxd4 $1 {
[%emt 0:00:25]} 12. Bxd7+ {[%emt 0:00:04]} Bxd7 {[%emt 0:00:06]} 13. Qxd4 {
[%emt 0:00:03]} Bb5 {[%emt 0:00:58]} 14. a4 $1 {[%emt 0:00:07]} Bd6 $1 {
[%emt 0:00:05]} 15. axb5 {[%emt 0:00:06]} Bxe5 {[%emt 0:00:12]} 16. Qa4 {
[%emt 0:00:03][%cal Rb5a6]} O-O {[%emt 0:02:40]} 17. b6 {[%emt 0:00:03]} Qe7 {
[%emt 0:01:13]} 18. O-O-O {[%emt 0:00:09] [#] Threatens to win with Rd7.} Rad8
$146 {[%emt 0:15:40] Prevents Rd7.} ({Predecessor:} 18... Rfd8 19. g4 h6 20. h4
Bf6 21. h5 Rd5 22. c4 Rc8 23. Kb1 Re5 24. c5 Bg5 25. Rd7 Qe8 26. f4 Rd5 27. Rd1
{½-½ (27) Cvak,R (2337)-Schroeder,C (2306) LSS email 2020}) 19. g3 {[%emt 0:
00:00]} Rd5 {[%emt 0:16:53]} (19... h6 $11 {keeps the balance.}) 20. c4 $1 $16
{[%emt 0:06:28]} Rdd8 {[%emt 0:14:43] [#]} (20... Rc8 $14) 21. Rxd8 $1 {
[%emt 0:09:07]} Rxd8 {[%emt 0:00:26]} 22. Rd1 {[%emt 0:00:19]} (22. c5 {
seems wilder.} Qf6 23. Rd1 Bxb2+ 24. Kc2) 22... Rxd1+ {[%emt 0:00:00]} 23. Kxd1
{[%emt 0:27:59] Endgame KQB-KQB} Bd6 $1 {[%emt 0:10:17] Inhibits c5.} 24. Kc2 {
[%emt 0:00:00]} (24. Ke2 $16) 24... Kf8 {[%emt 0:01:23]} 25. Qa5 {[%emt 0:00:
00] c5 is the strong threat.} Qd7 {[%emt 0:23:21]} 26. Kb3 {[%emt 0:00:00]} (
26. b3 $5 {[%cal Rc4c5]}) 26... Be7 {[%emt 0:04:28]} 27. Kc2 {[%emt 0:00:00]}
Bd6 {[%emt 0:00:00]} 28. b3 {[%emt 0:00:00]} Qc6 {[%emt 0:02:59]} 29. Kd2 {
[%emt 0:01:12]} (29. c5 $5 {[%cal Ra5a4]}) 29... f5 {[%emt 0:00:00]} 30. Ke2 {
[%emt 0:06:32]} Ke7 {[%emt 0:00:00]} 31. Qc3 {[%emt 0:00:00]} Kf7 {[%emt 0:00:
00]} 32. Qd4 {[%emt 0:00:00]} e5 {[%emt 0:00:00][%cal Ye6e5,Ye5f4,Yf4f3]} 33.
Qh4 {[%emt 0:00:00] And now Qh5+ would win.} f4 $1 {[%emt 0:07:18]} 34. gxf4 {
[%emt 0:02:43]} exf4 {[%emt 0:00:00]} 35. Qh5+ {[%emt 0:00:12]} Kg8 {[%emt 0:
00:00]} 36. Bd2 {[%emt 0:01:30] White does not recover from this.} ({White
must play} 36. c5 $1 $15) 36... Qe4+ $19 {[%emt 0:00:00]} 37. Kd1 {[%emt 0:02:
52] [#]} f3 $1 {[%emt 0:00:00] ( -> ... Qb1+)} 38. Qd5+ {[%emt 0:00:30]} Qxd5 {
[%emt 0:00:00]} 39. cxd5 {[%emt 0:00:24]} Bxh2 {[%emt 0:00:00] KB-KB} 40. Kc2 {
[%emt 0:00:00]} h5 {[%emt 0:00:00][%cal Yh7h5,Yh5h4,Yh4h3]} 41. Kd3 $2 {
[%emt 0:31:24]} (41. Bg5 Kf7 42. Kd3) 41... h4 {[%emt 0:29:33]} 42. Ke4 {
[%emt 0:02:49]} h3 {[%emt 0:00:11]} 43. Kxf3 {[%emt 0:00:05]} Bd6 {[%emt 0:00:
50]} 44. Bg5 {[%emt 0:00:31]} Kf7 {[%emt 0:00:00]} 45. Bh4 {[%emt 0:01:52]} Ke8
{[%emt 0:03:25]} 46. Bg3 {[%emt 0:00:12]} Kd7 {[%emt 0:00:06]} 47. Bxd6 {
[%emt 0:00:46]} Kxd6 {[%emt 0:00:07] Black mates.} 48. Kg3 {[%emt 0:00:01]}
Kxd5 {[%emt 0:01:42]} 49. Kxh3 {[%emt 0:00:04]} Kc5 {[%emt 0:00:05]} 50. Kg4 {
[%emt 0:00:03]} Kb4 {[%emt 0:00:04]} 51. Kf5 {[%emt 0:00:00]} Kxb3 {[%emt 0:00:
06] Weighted Error Value: White=0.43/Black=0.08 (flawless)} 0-1